[Event "Titled Tuesday Blitz June 20 Late 2023"]
[White "Golubev, Mikhail"]
[Black "Vargas, Mauricio"]
[WhiteFideId "14100983"]
[BlackFideId "4404572"]
[WhiteElo "2374"]
[BlackElo "1986"]
[Result "1-0"]
[Round "1"]
[TimeControl "180+2"]
[Date "2023.06.20"]
[WhiteClock "0:02:39"]
[BlackClock "0:01:18"]
[Board "193"]

1. e4 {[%clk 0:03:00]}  c5 {[%clk 0:02:55]} 2. Ne2 {[%clk 0:03:00]}  d6 {[%clk 0:02:54]} 3. d4 {[%clk 0:03:00]}  cxd4 {[%clk 0:02:53]} 4. Nxd4 {[%clk 0:03:00]}  Nc6 {[%clk 0:02:54]} 5. Nc3 {[%clk 0:03:00]}  Nf6 {[%clk 0:02:50]} 6. Bc4 {[%clk 0:03:00]}  g6 {[%clk 0:02:47]} 7. Nxc6 {[%clk 0:02:58]}  bxc6 {[%clk 0:02:46]} 8. e5 {[%clk 0:02:57]}  dxe5 {[%clk 0:02:30]} 9. Bxf7+ {[%clk 0:02:54]}  Kxf7 {[%clk 0:02:02]} 10. Qxd8 {[%clk 0:02:55]}  Bg7 {[%clk 0:01:54]} 11. Qa5 {[%clk 0:02:52]}  Be6 {[%clk 0:01:40]} 12. O-O {[%clk 0:02:51]}  Rhd8 {[%clk 0:01:34]} 13. Re1 {[%clk 0:02:48]}  Nd5 {[%clk 0:01:27]} 14. Ne4 {[%clk 0:02:45]}  Nf4 {[%clk 0:01:21]} 15. Bxf4 {[%clk 0:02:42]}  exf4 {[%clk 0:01:19]} 16. Ng5+ {[%clk 0:02:42]}  Kf6 {[%clk 0:01:18]} 17. Qe5# {[%clk 0:02:39]} 1-0


[Site "https://www.chess.com"]

[Event "Titled Tuesday Blitz June 20 Late 2023"]
[White "Munoz Misselis, Nelson Carlos"]
[Black "Ozates, Tuna"]
[WhiteFideId "6601790"]
[BlackFideId "6354521"]
[WhiteElo "1749"]
[BlackElo "2151"]
[Result "0-1"]
[Round "1"]
[TimeControl "180+2"]
[Date "2023.06.20"]
[WhiteClock "0:01:52"]
[BlackClock "0:02:12"]
[Board "194"]

1. d4 {[%clk 0:02:42]}  f5 {[%clk 0:02:52]} 2. c4 {[%clk 0:02:42]}  Nf6 {[%clk 0:02:51]} 3. Nc3 {[%clk 0:02:42]}  e6 {[%clk 0:02:50]} 4. g3 {[%clk 0:02:43]}  Be7 {[%clk 0:02:49]} 5. Bg2 {[%clk 0:02:44]}  O-O {[%clk 0:02:50]} 6. Nf3 {[%clk 0:02:44]}  d6 {[%clk 0:02:50]} 7. e3 {[%clk 0:02:44]}  Qe8 {[%clk 0:02:51]} 8. O-O {[%clk 0:02:44]}  a5 {[%clk 0:02:51]} 9. a3 {[%clk 0:02:43]}  Na6 {[%clk 0:02:52]} 10. Bd2 {[%clk 0:02:43]}  Qh5 {[%clk 0:02:51]} 11. Nh4 {[%clk 0:02:39]}  Qh6 {[%clk 0:02:51]} 12. Nf3 {[%clk 0:02:39]}  g5 {[%clk 0:02:48]} 13. h3 {[%clk 0:02:37]}  Kh8 {[%clk 0:02:45]} 14. Re1 {[%clk 0:02:32]}  Rg8 {[%clk 0:02:45]} 15. e4 {[%clk 0:02:32]}  f4 {[%clk 0:02:42]} 16. g4 {[%clk 0:02:31]}  Nd7 {[%clk 0:02:36]} 17. Qe2 {[%clk 0:02:21]}  Qg7 {[%clk 0:02:26]} 18. Rab1 {[%clk 0:02:17]}  c5 {[%clk 0:02:20]} 19. d5 {[%clk 0:02:13]}  e5 {[%clk 0:02:17]} 20. Nb5 {[%clk 0:02:12]}  Nf6 {[%clk 0:02:17]} 21. Qd3 {[%clk 0:02:10]}  h5 {[%clk 0:02:16]} 22. gxh5 {[%clk 0:02:07]}  g4 {[%clk 0:02:15]} 23. Nh4 {[%clk 0:02:00]}  gxh3 {[%clk 0:02:14]} 24. Ng6+ {[%clk 0:02:00]}  Kh7 {[%clk 0:02:12]} 25. Bxh3 {[%clk 0:01:52]}  Nxh5 {[%clk 0:02:12]} 0-1


[Site "https://www.chess.com"]

[Event "Titled Tuesday Blitz June 20 Late 2023"]
[White "Leon Oquendo, Jorge"]
[Black "Carlsen, Magnus"]
[WhiteFideId "3514803"]
[BlackFideId "1503014"]
[WhiteElo "2276"]
[BlackElo "2858"]
[Result "0-1"]
[Round "2"]
[TimeControl "180+2"]
[Date "2023.06.20"]
[WhiteClock "0:00:00"]
[BlackClock "0:01:49"]
[Board "1"]

1. d4 {[%clk 0:02:59]}  b5 {[%clk 0:02:53]} 2. e3 {[%clk 0:02:53]}  Bb7 {[%clk 0:02:52]} 3. Nf3 {[%clk 0:02:53]}  a6 {[%clk 0:02:52]} 4. c4 {[%clk 0:02:53]}  bxc4 {[%clk 0:02:52]} 5. Bxc4 {[%clk 0:02:53]}  e6 {[%clk 0:02:53]} 6. O-O {[%clk 0:02:53]}  Nf6 {[%clk 0:02:53]} 7. Nc3 {[%clk 0:02:47]}  Be7 {[%clk 0:02:52]} 8. Bd3 {[%clk 0:02:44]}  c5 {[%clk 0:02:51]} 9. dxc5 {[%clk 0:02:42]}  Bxc5 {[%clk 0:02:51]} 10. Bd2 {[%clk 0:02:41]}  O-O {[%clk 0:02:51]} 11. Rc1 {[%clk 0:02:41]}  d6 {[%clk 0:02:50]} 12. Qe2 {[%clk 0:02:39]}  Nbd7 {[%clk 0:02:49]} 13. Rfd1 {[%clk 0:02:40]}  Qb8 {[%clk 0:02:45]} 14. h3 {[%clk 0:02:35]}  h6 {[%clk 0:02:45]} 15. Be1 {[%clk 0:02:33]}  Bxf3 {[%clk 0:02:40]} 16. Qxf3 {[%clk 0:02:23]}  Ne5 {[%clk 0:02:33]} 17. Qe2 {[%clk 0:02:22]}  Nxd3 {[%clk 0:02:33]} 18. Rxd3 {[%clk 0:02:22]}  Rc8 {[%clk 0:02:33]} 19. Rdd1 {[%clk 0:02:19]}  d5 {[%clk 0:02:31]} 20. Na4 {[%clk 0:02:13]}  Ba7 {[%clk 0:02:31]} 21. b3 {[%clk 0:02:01]}  Qb5 {[%clk 0:02:30]} 22. Qxb5 {[%clk 0:01:44]}  axb5 {[%clk 0:02:30]} 23. Nc3 {[%clk 0:01:44]}  Bb6 {[%clk 0:02:28]} 24. Nxb5 {[%clk 0:01:33]}  Rxc1 {[%clk 0:02:29]} 25. Rxc1 {[%clk 0:01:33]}  Rxa2 {[%clk 0:02:30]} 26. Nc3 {[%clk 0:01:06]}  Ra3 {[%clk 0:02:21]} 27. Rb1 {[%clk 0:01:05]}  Kh7 {[%clk 0:02:20]} 28. Kf1 {[%clk 0:01:05]}  Nd7 {[%clk 0:02:20]} 29. Ke2 {[%clk 0:00:58]}  Kg6 {[%clk 0:02:19]} 30. g4 {[%clk 0:00:55]}  h5 {[%clk 0:02:19]} 31. Bd2 {[%clk 0:00:52]}  Ne5 {[%clk 0:02:14]} 32. f3 {[%clk 0:00:48]}  Nc6 {[%clk 0:02:12]} 33. Nb5 {[%clk 0:00:43]}  Ra2 {[%clk 0:02:12]} 34. Nc3 {[%clk 0:00:42]}  Ra3 {[%clk 0:02:08]} 35. Bc1 {[%clk 0:00:36]}  Ra8 {[%clk 0:02:07]} 36. Bd2 {[%clk 0:00:36]}  hxg4 {[%clk 0:02:07]} 37. hxg4 {[%clk 0:00:35]}  Rh8 {[%clk 0:02:08]} 38. Rf1 {[%clk 0:00:31]}  Ne5 {[%clk 0:02:08]} 39. Be1 {[%clk 0:00:23]}  d4 {[%clk 0:02:03]} 40. exd4 {[%clk 0:00:21]}  Bxd4 {[%clk 0:02:04]} 41. Ne4 {[%clk 0:00:21]}  Rh2+ {[%clk 0:02:02]} 42. Bf2 {[%clk 0:00:20]}  f5 {[%clk 0:01:57]} 43. gxf5+ {[%clk 0:00:20]}  exf5 {[%clk 0:01:58]} 44. Nd2 {[%clk 0:00:06]}  Kg5 {[%clk 0:01:54]} 45. b4 {[%clk 0:00:06]}  Kf4 {[%clk 0:01:54]} 46. b5 {[%clk 0:00:06]}  Bb6 {[%clk 0:01:52]} 47. Nb3 {[%clk 0:00:01]}  Nxf3 {[%clk 0:01:49]} 48. Kd3 {[%clk 0:00:01]}  Rxf2 {[%clk 0:01:48]} 49. Rxf2 {[%clk 0:00:00]}  Bxf2 {[%clk 0:01:49]} 0-1


[Site "https://www.chess.com"]

[Event "Titled Tuesday Blitz June 20 Late 2023"]
[White "Nakamura, Hikaru"]
[Black "Korchmar, Vasiliy"]
[WhiteFideId "2016192"]
[BlackFideId "24131750"]
[WhiteElo "2874"]
[BlackElo "2370"]
[Result "1-0"]
[Round "2"]
[TimeControl "180+2"]
[Date "2023.06.20"]
[WhiteClock "0:00:48"]
[BlackClock "0:00:00"]
[Board "2"]

1. Nf3 {[%clk 0:03:00]}  d5 {[%clk 0:02:59]} 2. e3 {[%clk 0:03:00]}  Nf6 {[%clk 0:02:59]} 3. c4 {[%clk 0:03:01]}  c6 {[%clk 0:02:59]} 4. b3 {[%clk 0:02:58]}  Bg4 {[%clk 0:02:56]} 5. Bb2 {[%clk 0:02:57]}  e6 {[%clk 0:02:56]} 6. Be2 {[%clk 0:02:57]}  Nbd7 {[%clk 0:02:56]} 7. h3 {[%clk 0:02:57]}  Bh5 {[%clk 0:02:56]} 8. d4 {[%clk 0:02:58]}  Bd6 {[%clk 0:02:55]} 9. Nc3 {[%clk 0:02:58]}  O-O {[%clk 0:02:55]} 10. O-O {[%clk 0:02:58]}  Qe7 {[%clk 0:02:40]} 11. a3 {[%clk 0:02:54]}  a5 {[%clk 0:02:39]} 12. Nd2 {[%clk 0:02:46]}  Bg6 {[%clk 0:02:37]} 13. Nf3 {[%clk 0:02:44]}  h6 {[%clk 0:02:35]} 14. Bd3 {[%clk 0:02:43]}  Ne4 {[%clk 0:02:25]} 15. Qc2 {[%clk 0:02:38]}  f5 {[%clk 0:02:24]} 16. Ne2 {[%clk 0:02:38]}  Qf6 {[%clk 0:02:15]} 17. Nf4 {[%clk 0:02:32]}  Bf7 {[%clk 0:02:12]} 18. Be2 {[%clk 0:02:32]}  g5 {[%clk 0:01:40]} 19. Nd3 {[%clk 0:02:32]}  g4 {[%clk 0:01:09]} 20. Nfe5 {[%clk 0:02:29]}  Bxe5 {[%clk 0:01:07]} 21. dxe5 {[%clk 0:02:22]}  Qh4 {[%clk 0:01:03]} 22. Nf4 {[%clk 0:02:12]}  gxh3 {[%clk 0:00:43]} 23. g3 {[%clk 0:02:09]}  Qg5 {[%clk 0:00:29]} 24. Kh2 {[%clk 0:02:08]}  Kh7 {[%clk 0:00:26]} 25. Bd3 {[%clk 0:01:44]}  Ndc5 {[%clk 0:00:20]} 26. Be2 {[%clk 0:01:44]}  Rg8 {[%clk 0:00:19]} 27. Nxh3 {[%clk 0:01:42]}  Qg7 {[%clk 0:00:17]} 28. Rg1 {[%clk 0:01:43]}  h5 {[%clk 0:00:07]} 29. b4 {[%clk 0:01:35]}  Nd7 {[%clk 0:00:06]} 30. cxd5 {[%clk 0:01:35]}  cxd5 {[%clk 0:00:05]} 31. Qc7 {[%clk 0:01:35]}  Rad8 {[%clk 0:00:06]} 32. Bd4 {[%clk 0:01:25]}  Qh6 {[%clk 0:00:05]} 33. f3 {[%clk 0:01:22]}  Ng5 {[%clk 0:00:03]} 34. Nf4 {[%clk 0:01:11]}  h4 {[%clk 0:00:03]} 35. g4 {[%clk 0:01:12]}  fxg4 {[%clk 0:00:03]} 36. Rxg4 {[%clk 0:01:12]}  Bh5 {[%clk 0:00:01]} 37. Nxh5 {[%clk 0:01:09]}  Qxh5 {[%clk 0:00:02]} 38. Rag1 {[%clk 0:01:09]}  Kh6 {[%clk 0:00:01]} 39. e4 {[%clk 0:01:04]}  Rc8 {[%clk 0:00:01]} 40. Qxd7 {[%clk 0:01:03]}  Rc2 {[%clk 0:00:01]} 41. Kh1 {[%clk 0:00:48]}  Rxe2 {[%clk 0:00:00]} 42. Qe7 {[%clk 0:00:48]} 1-0


[Site "https://www.chess.com"]

[Event "Titled Tuesday Blitz June 20 Late 2023"]
[White "Martinez Alcantara, Jose Eduardo"]
[Black "Spata, German"]
[WhiteFideId "3805662"]
[BlackFideId "113026"]
[WhiteElo "2711"]
[BlackElo "2260"]
[Result "1-0"]
[Round "2"]
[TimeControl "180+2"]
[Date "2023.06.20"]
[WhiteClock "0:02:56"]
[BlackClock "0:01:22"]
[Board "3"]

1. e4 {[%clk 0:03:00]}  e6 {[%clk 0:02:39]} 2. d4 {[%clk 0:03:00]}  d5 {[%clk 0:02:39]} 3. Nd2 {[%clk 0:03:01]}  dxe4 {[%clk 0:02:39]} 4. Nxe4 {[%clk 0:03:02]}  Nd7 {[%clk 0:02:40]} 5. Nf3 {[%clk 0:03:03]}  Ngf6 {[%clk 0:02:40]} 6. Nxf6+ {[%clk 0:03:02]}  Nxf6 {[%clk 0:02:40]} 7. Be3 {[%clk 0:03:03]}  Nd5 {[%clk 0:02:37]} 8. Bd2 {[%clk 0:03:02]}  c5 {[%clk 0:02:35]} 9. dxc5 {[%clk 0:03:03]}  Bxc5 {[%clk 0:02:35]} 10. Bd3 {[%clk 0:03:04]}  Bb4 {[%clk 0:02:24]} 11. c3 {[%clk 0:02:59]}  Bd6 {[%clk 0:02:21]} 12. Qe2 {[%clk 0:02:58]}  Nf4 {[%clk 0:02:12]} 13. Bb5+ {[%clk 0:02:55]}  Bd7 {[%clk 0:02:12]} 14. Bxf4 {[%clk 0:02:55]}  Bxf4 {[%clk 0:01:22]} 15. Rd1 {[%clk 0:02:56]} 1-0


[Site "https://www.chess.com"]

[Event "Titled Tuesday Blitz June 20 Late 2023"]
[White "Martic, Ivan"]
[Black "Liang, Awonder"]
[WhiteFideId "929301"]
[BlackFideId "2056437"]
[WhiteElo "2346"]
[BlackElo "2508"]
[Result "0-1"]
[Round "2"]
[TimeControl "180+2"]
[Date "2023.06.20"]
[WhiteClock "0:00:12"]
[BlackClock "0:01:53"]
[Board "6"]

1. d4 {[%clk 0:03:00]}  b6 {[%clk 0:03:00]} 2. e4 {[%clk 0:03:00]}  Bb7 {[%clk 0:03:01]} 3. Bd3 {[%clk 0:02:57]}  e6 {[%clk 0:03:02]} 4. Nf3 {[%clk 0:02:57]}  d6 {[%clk 0:03:02]} 5. Qe2 {[%clk 0:02:54]}  Nd7 {[%clk 0:03:02]} 6. Nbd2 {[%clk 0:02:50]}  g6 {[%clk 0:03:02]} 7. c3 {[%clk 0:02:49]}  Bg7 {[%clk 0:03:03]} 8. a4 {[%clk 0:02:48]}  a6 {[%clk 0:03:02]} 9. O-O {[%clk 0:02:37]}  Ne7 {[%clk 0:03:02]} 10. Re1 {[%clk 0:02:36]}  h6 {[%clk 0:03:02]} 11. Nc4 {[%clk 0:02:32]}  g5 {[%clk 0:03:01]} 12. e5 {[%clk 0:02:31]}  d5 {[%clk 0:03:01]} 13. Ne3 {[%clk 0:02:30]}  c5 {[%clk 0:03:01]} 14. b4 {[%clk 0:02:27]}  c4 {[%clk 0:03:00]} 15. Bc2 {[%clk 0:02:26]}  Qc7 {[%clk 0:03:01]} 16. Ba3 {[%clk 0:02:21]}  b5 {[%clk 0:02:56]} 17. h3 {[%clk 0:02:17]}  O-O-O {[%clk 0:02:55]} 18. axb5 {[%clk 0:02:16]}  axb5 {[%clk 0:02:56]} 19. Bc1 {[%clk 0:02:12]}  Nc6 {[%clk 0:02:51]} 20. Ng4 {[%clk 0:02:10]}  Bf8 {[%clk 0:02:48]} 21. Bd2 {[%clk 0:02:08]}  Be7 {[%clk 0:02:48]} 22. Ra2 {[%clk 0:01:54]}  Rdg8 {[%clk 0:02:48]} 23. Nf6 {[%clk 0:01:47]}  Nxf6 {[%clk 0:02:45]} 24. exf6 {[%clk 0:01:48]}  Bxf6 {[%clk 0:02:45]} 25. Ne5 {[%clk 0:01:46]}  Bxe5 {[%clk 0:02:34]} 26. dxe5 {[%clk 0:01:47]}  h5 {[%clk 0:02:34]} 27. Be3 {[%clk 0:01:42]}  Qxe5 {[%clk 0:02:29]} 28. Qd2 {[%clk 0:01:41]}  Qf6 {[%clk 0:02:27]} 29. Bc5 {[%clk 0:01:33]}  g4 {[%clk 0:02:27]} 30. h4 {[%clk 0:01:31]}  Qxh4 {[%clk 0:02:27]} 31. Bd6 {[%clk 0:01:30]}  Qd8 {[%clk 0:02:24]} 32. Bc5 {[%clk 0:01:26]}  g3 {[%clk 0:02:23]} 33. fxg3 {[%clk 0:01:24]}  Rxg3 {[%clk 0:02:23]} 34. Qf4 {[%clk 0:01:11]}  Rhg8 {[%clk 0:02:19]} 35. Rea1 {[%clk 0:01:11]}  Rxg2+ {[%clk 0:02:19]} 36. Kf1 {[%clk 0:01:10]}  Qg5 {[%clk 0:02:16]} 37. Ra8+ {[%clk 0:01:08]}  Bxa8 {[%clk 0:02:14]} 38. Rxa8+ {[%clk 0:01:09]}  Kb7 {[%clk 0:02:15]} 39. Ra7+ {[%clk 0:01:05]}  Nxa7 {[%clk 0:02:06]} 40. Qxf7+ {[%clk 0:01:05]}  Kc8 {[%clk 0:01:55]} 41. Qxe6+ {[%clk 0:01:04]}  Kb8 {[%clk 0:01:55]} 42. Bxa7+ {[%clk 0:00:54]}  Kxa7 {[%clk 0:01:55]} 43. Qd7+ {[%clk 0:00:51]}  Kb8 {[%clk 0:01:55]} 44. Qd6+ {[%clk 0:00:50]}  Kc8 {[%clk 0:01:55]} 45. Qc6+ {[%clk 0:00:37]}  Kd8 {[%clk 0:01:55]} 46. Qb6+ {[%clk 0:00:31]}  Ke8 {[%clk 0:01:54]} 47. Qc6+ {[%clk 0:00:27]}  Kf8 {[%clk 0:01:54]} 48. Qc8+ {[%clk 0:00:25]}  Kf7 {[%clk 0:01:52]} 49. Qd7+ {[%clk 0:00:20]}  Qe7 {[%clk 0:01:53]} 50. Qxd5+ {[%clk 0:00:20]}  Qe6 {[%clk 0:01:53]} 51. Qxh5+ {[%clk 0:00:18]}  R2g6 {[%clk 0:01:52]} 52. Qh7+ {[%clk 0:00:15]}  R8g7 {[%clk 0:01:52]} 53. Bxg6+ {[%clk 0:00:12]}  Qxg6 {[%clk 0:01:53]} 0-1


[Site "https://www.chess.com"]

[Event "Titled Tuesday Blitz June 20 Late 2023"]
[White "Ashraf, Artin"]
[Black "Yoo, Christopher Woojin"]
[WhiteFideId "22514805"]
[BlackFideId "30909694"]
[WhiteElo "2224"]
[BlackElo "2528"]
[Result "0-1"]
[Round "2"]
[TimeControl "180+2"]
[Date "2023.06.20"]
[WhiteClock "0:00:00"]
[BlackClock "0:00:03"]
[Board "9"]

1. Nf3 {[%clk 0:03:00]}  d5 {[%clk 0:02:59]} 2. e3 {[%clk 0:03:00]}  Nf6 {[%clk 0:02:52]} 3. c4 {[%clk 0:03:00]}  e6 {[%clk 0:02:50]} 4. Nc3 {[%clk 0:03:00]}  Nbd7 {[%clk 0:02:49]} 5. b3 {[%clk 0:02:56]}  c6 {[%clk 0:02:49]} 6. Bb2 {[%clk 0:02:53]}  e5 {[%clk 0:02:48]} 7. d4 {[%clk 0:02:36]}  e4 {[%clk 0:02:43]} 8. Nd2 {[%clk 0:02:36]}  Bd6 {[%clk 0:02:27]} 9. Be2 {[%clk 0:02:29]}  O-O {[%clk 0:02:26]} 10. g4 {[%clk 0:02:26]}  b6 {[%clk 0:01:23]} 11. g5 {[%clk 0:01:28]}  Ne8 {[%clk 0:01:22]} 12. cxd5 {[%clk 0:01:20]}  cxd5 {[%clk 0:01:21]} 13. Nxd5 {[%clk 0:01:10]}  Qxg5 {[%clk 0:01:17]} 14. Nc3 {[%clk 0:00:58]}  f5 {[%clk 0:01:08]} 15. Qc2 {[%clk 0:00:46]}  Qh4 {[%clk 0:00:41]} 16. Nb5 {[%clk 0:00:34]}  Be7 {[%clk 0:00:15]} 17. Qc6 {[%clk 0:00:12]}  Rb8 {[%clk 0:00:15]} 18. Nxa7 {[%clk 0:00:13]}  Nef6 {[%clk 0:00:06]} 19. Qe6+ {[%clk 0:00:12]}  Kh8 {[%clk 0:00:04]} 20. Qxe7 {[%clk 0:00:08]}  Bb7 {[%clk 0:00:04]} 21. Qd6 {[%clk 0:00:06]}  Rbd8 {[%clk 0:00:03]} 22. Qg3 {[%clk 0:00:06]}  Qh6 {[%clk 0:00:03]} 23. Nb5 {[%clk 0:00:07]}  Nd5 {[%clk 0:00:03]} 24. O-O-O {[%clk 0:00:05]}  f4 {[%clk 0:00:03]} 25. exf4 {[%clk 0:00:04]}  Nxf4 {[%clk 0:00:04]} 26. Bc4 {[%clk 0:00:03]}  e3 {[%clk 0:00:03]} 27. fxe3 {[%clk 0:00:04]}  Bxh1 {[%clk 0:00:03]} 28. Rxh1 {[%clk 0:00:05]}  Nh5 {[%clk 0:00:03]} 29. Qd6 {[%clk 0:00:04]}  Qg5 {[%clk 0:00:03]} 30. Kb1 {[%clk 0:00:01]}  Qxe3 {[%clk 0:00:03]} 31. Bc1 {[%clk 0:00:02]}  Qe8 {[%clk 0:00:02]} 32. Qe6 {[%clk 0:00:02]}  Ndf6 {[%clk 0:00:02]} 33. Qxe8 {[%clk 0:00:02]}  Rfxe8 {[%clk 0:00:03]} 34. Nc7 {[%clk 0:00:00]}  Re7 {[%clk 0:00:03]} 0-1


[Site "https://www.chess.com"]

[Event "Titled Tuesday Blitz June 20 Late 2023"]
[White "Andreikin, Dmitry"]
[Black "Lopez Mulet, Inigo"]
[WhiteFideId "4158814"]
[BlackFideId "22235620"]
[WhiteElo "2736"]
[BlackElo "2302"]
[Result "1-0"]
[Round "2"]
[TimeControl "180+2"]
[Date "2023.06.20"]
[WhiteClock "0:00:31"]
[BlackClock "0:00:08"]
[Board "10"]

1. e4 {[%clk 0:03:00]}  g6 {[%clk 0:02:49]} 2. d4 {[%clk 0:02:59]}  Bg7 {[%clk 0:02:50]} 3. Nf3 {[%clk 0:02:58]}  d6 {[%clk 0:02:50]} 4. Bc4 {[%clk 0:02:59]}  c6 {[%clk 0:02:46]} 5. Bb3 {[%clk 0:02:56]}  a5 {[%clk 0:02:46]} 6. c3 {[%clk 0:02:55]}  Nf6 {[%clk 0:02:45]} 7. Nbd2 {[%clk 0:02:54]}  O-O {[%clk 0:02:45]} 8. O-O {[%clk 0:02:54]}  Nbd7 {[%clk 0:02:42]} 9. e5 {[%clk 0:02:53]}  Nd5 {[%clk 0:02:42]} 10. exd6 {[%clk 0:02:51]}  exd6 {[%clk 0:02:38]} 11. Ne4 {[%clk 0:02:50]}  N7f6 {[%clk 0:02:37]} 12. Bg5 {[%clk 0:02:49]}  Bf5 {[%clk 0:02:32]} 13. Ng3 {[%clk 0:02:44]}  Be6 {[%clk 0:02:31]} 14. Re1 {[%clk 0:02:44]}  h6 {[%clk 0:02:27]} 15. Bd2 {[%clk 0:02:43]}  b5 {[%clk 0:02:26]} 16. Bc2 {[%clk 0:02:41]}  a4 {[%clk 0:02:26]} 17. Bxg6 {[%clk 0:02:37]}  fxg6 {[%clk 0:02:25]} 18. Rxe6 {[%clk 0:02:37]}  a3 {[%clk 0:02:26]} 19. b3 {[%clk 0:02:35]}  Qd7 {[%clk 0:02:22]} 20. Re2 {[%clk 0:02:35]}  Rae8 {[%clk 0:02:08]} 21. Rxe8 {[%clk 0:02:31]}  Rxe8 {[%clk 0:02:09]} 22. Qc1 {[%clk 0:02:31]}  Qa7 {[%clk 0:01:36]} 23. Bxh6 {[%clk 0:02:26]}  Nxc3 {[%clk 0:01:36]} 24. Bxg7 {[%clk 0:02:20]}  Nfe4 {[%clk 0:01:36]} 25. Qc2 {[%clk 0:01:56]}  Qxg7 {[%clk 0:01:31]} 26. Re1 {[%clk 0:01:55]}  d5 {[%clk 0:01:23]} 27. Nxe4 {[%clk 0:01:54]}  Nxe4 {[%clk 0:01:22]} 28. Qxc6 {[%clk 0:01:54]}  Qf7 {[%clk 0:01:19]} 29. h4 {[%clk 0:01:51]}  Re7 {[%clk 0:01:15]} 30. Qxb5 {[%clk 0:01:47]}  Kg7 {[%clk 0:01:00]} 31. Qa5 {[%clk 0:01:47]}  Ra7 {[%clk 0:00:50]} 32. Qb4 {[%clk 0:01:45]}  Rc7 {[%clk 0:00:41]} 33. Qxa3 {[%clk 0:01:34]}  Rc2 {[%clk 0:00:41]} 34. Qb4 {[%clk 0:01:28]}  Rxf2 {[%clk 0:00:31]} 35. Rxe4 {[%clk 0:01:22]}  dxe4 {[%clk 0:00:31]} 36. Kxf2 {[%clk 0:01:21]}  exf3 {[%clk 0:00:31]} 37. gxf3 {[%clk 0:01:21]}  Qf4 {[%clk 0:00:24]} 38. Qe7+ {[%clk 0:01:21]}  Kg8 {[%clk 0:00:24]} 39. Qe6+ {[%clk 0:01:20]}  Kh7 {[%clk 0:00:22]} 40. Qe7+ {[%clk 0:01:17]}  Kg8 {[%clk 0:00:23]} 41. Qe4 {[%clk 0:01:09]}  Qh2+ {[%clk 0:00:22]} 42. Ke3 {[%clk 0:01:09]}  Qg1+ {[%clk 0:00:21]} 43. Kd3 {[%clk 0:01:08]}  Qb1+ {[%clk 0:00:20]} 44. Kc4 {[%clk 0:01:08]}  Qc1+ {[%clk 0:00:19]} 45. Kb5 {[%clk 0:01:07]}  Qf1+ {[%clk 0:00:19]} 46. Kb6 {[%clk 0:01:06]}  Kh7 {[%clk 0:00:18]} 47. h5 {[%clk 0:01:03]}  Qd1 {[%clk 0:00:17]} 48. hxg6+ {[%clk 0:01:02]}  Kh6 {[%clk 0:00:18]} 49. d5 {[%clk 0:00:59]}  Qg1+ {[%clk 0:00:18]} 50. Kc6 {[%clk 0:00:59]}  Qa7 {[%clk 0:00:18]} 51. d6 {[%clk 0:00:58]}  Qa8+ {[%clk 0:00:18]} 52. Kd7 {[%clk 0:00:57]}  Qa7+ {[%clk 0:00:18]} 53. Ke6 {[%clk 0:00:57]}  Qb6 {[%clk 0:00:18]} 54. Ke7 {[%clk 0:00:49]}  Qc5 {[%clk 0:00:18]} 55. b4 {[%clk 0:00:48]}  Qg5+ {[%clk 0:00:17]} 56. Ke6 {[%clk 0:00:48]}  Qd8 {[%clk 0:00:14]} 57. d7 {[%clk 0:00:46]}  Qg8+ {[%clk 0:00:15]} 58. Kd6 {[%clk 0:00:45]}  Qb8+ {[%clk 0:00:15]} 59. Ke7 {[%clk 0:00:44]}  Qc7 {[%clk 0:00:16]} 60. a4 {[%clk 0:00:42]}  Qa7 {[%clk 0:00:16]} 61. a5 {[%clk 0:00:42]}  Qc7 {[%clk 0:00:16]} 62. a6 {[%clk 0:00:43]}  Qa7 {[%clk 0:00:17]} 63. Ke8 {[%clk 0:00:38]}  Qb8+ {[%clk 0:00:10]} 64. d8=Q {[%clk 0:00:38]}  Qb5+ {[%clk 0:00:11]} 65. Ke7 {[%clk 0:00:35]}  Qg5+ {[%clk 0:00:08]} 66. Kd7 {[%clk 0:00:32]}  Qb5+ {[%clk 0:00:09]} 67. Kc7 {[%clk 0:00:30]}  Qxa6 {[%clk 0:00:07]} 68. Qh8+ {[%clk 0:00:30]}  Kg5 {[%clk 0:00:08]} 69. Qhh4# {[%clk 0:00:31]} 1-0


[Site "https://www.chess.com"]

[Event "Titled Tuesday Blitz June 20 Late 2023"]
[White "Mortazavi, Ali"]
[Black "Sviridov, Valery"]
[WhiteFideId "401323"]
[BlackFideId "4120680"]
[WhiteElo "2339"]
[BlackElo "2457"]
[Result "0-1"]
[Round "2"]
[TimeControl "180+2"]
[Date "2023.06.20"]
[WhiteClock "0:00:54"]
[BlackClock "0:01:39"]
[Board "13"]

1. Nf3 {[%clk 0:02:59]}  g6 {[%clk 0:02:59]} 2. e4 {[%clk 0:02:59]}  Bg7 {[%clk 0:03:00]} 3. d4 {[%clk 0:03:00]}  d6 {[%clk 0:03:00]} 4. Nc3 {[%clk 0:03:00]}  a6 {[%clk 0:03:00]} 5. Be3 {[%clk 0:02:54]}  b5 {[%clk 0:03:00]} 6. a4 {[%clk 0:02:54]}  b4 {[%clk 0:03:00]} 7. Ne2 {[%clk 0:02:55]}  Bb7 {[%clk 0:03:00]} 8. Ng3 {[%clk 0:02:55]}  Nf6 {[%clk 0:03:01]} 9. Bd3 {[%clk 0:02:55]}  Nbd7 {[%clk 0:03:01]} 10. h3 {[%clk 0:02:54]}  c5 {[%clk 0:03:00]} 11. c3 {[%clk 0:02:55]}  O-O {[%clk 0:02:54]} 12. O-O {[%clk 0:02:55]}  a5 {[%clk 0:02:54]} 13. Qd2 {[%clk 0:02:54]}  e5 {[%clk 0:02:52]} 14. d5 {[%clk 0:02:51]}  Ba6 {[%clk 0:02:35]} 15. c4 {[%clk 0:02:51]}  Bc8 {[%clk 0:02:35]} 16. Nh2 {[%clk 0:02:50]}  h5 {[%clk 0:02:31]} 17. Bh6 {[%clk 0:02:41]}  h4 {[%clk 0:02:29]} 18. Ne2 {[%clk 0:02:39]}  Nh5 {[%clk 0:02:29]} 19. Ng4 {[%clk 0:02:25]}  Ndf6 {[%clk 0:02:16]} 20. Bxg7 {[%clk 0:02:25]}  Kxg7 {[%clk 0:02:16]} 21. Qh6+ {[%clk 0:02:25]}  Kg8 {[%clk 0:02:16]} 22. Nxf6+ {[%clk 0:02:16]}  Qxf6 {[%clk 0:02:17]} 23. f4 {[%clk 0:02:17]}  exf4 {[%clk 0:02:14]} 24. Kh1 {[%clk 0:02:10]}  Qxb2 {[%clk 0:01:49]} 25. Qg5 {[%clk 0:01:38]}  Qf6 {[%clk 0:01:46]} 26. Qxf6 {[%clk 0:01:37]}  Nxf6 {[%clk 0:01:47]} 27. Rxf4 {[%clk 0:01:38]}  Nd7 {[%clk 0:01:48]} 28. Rxh4 {[%clk 0:01:38]}  Ne5 {[%clk 0:01:49]} 29. Rd1 {[%clk 0:01:31]}  Ba6 {[%clk 0:01:48]} 30. Bb1 {[%clk 0:01:29]}  Bxc4 {[%clk 0:01:47]} 31. Ng3 {[%clk 0:01:28]}  Bb3 {[%clk 0:01:46]} 32. Rf1 {[%clk 0:01:27]}  Bxa4 {[%clk 0:01:46]} 33. Nf5 {[%clk 0:01:01]}  gxf5 {[%clk 0:01:40]} 34. exf5 {[%clk 0:00:59]}  f6 {[%clk 0:01:40]} 35. g4 {[%clk 0:00:57]}  Bb3 {[%clk 0:01:39]} 36. Rg1 {[%clk 0:00:55]}  Bxd5+ {[%clk 0:01:39]} 37. Kh2 {[%clk 0:00:55]}  Nf3+ {[%clk 0:01:39]} 38. Kg3 {[%clk 0:00:54]}  Nxg1 {[%clk 0:01:39]} 0-1


[Site "https://www.chess.com"]